[Event "AUT Bundesliga Women 2021-22"]
[Site "Austria"]
[Date "2022.04.23"]
[Round "9.14"]
[White "Urh, Zala"]
[Black "Anker, Christin"]
[Result "1-0"]
[ECO "D02"]
[WhiteElo "2284"]
[BlackElo "1843"]
[Annotator "TA"]
[PlyCount "95"]
[EventDate "2021.11.06"]
[EventType "team-tourn"]
[EventCountry "AUT"]
[SourceTitle "playchess.com"]
[Source "ChessBase"]
[SourceQuality "1"]
[TimeControl "40/5400+30:1800+30"]

{[%evp 9,95,28,25,13,36,32,54,31,34,41,142,150,149,150,145,140,144,146,191,195,213,215,267,234,292,300,295,295,304,295,291,270,281,276,270,281,304,306,319,300,301,305,355,345,344,325,330,326,380,329,330,330,325,322,402,400,372,368,444,464,502,497,545,553,1031,1000,1227,1175,1344,1062,1193,1059,1043,1054,29972,29973,29972,29974,29975,29976,29976,29977,29977,29978,29977,29978,29978,6486]} 1. d4 {[%emt 0:00:11]} d5 {[%emt 0:00:07]} 2. Nf3 {[%emt 0:00:06]} Nf6 {[%emt 0:00:10]} 3. Bf4 {[%emt 0:00:09]} c6 {[%emt 0:00:50]} 4. e3 {[%emt 0:01:19]} Bg4 {[%emt 0:00:36]} 5. Nbd2 {[%emt 0:01:51]} e6 {[%emt 0:01:27]} 6. Be2 {[%emt 0:05:40] D02: 1 d4 d5 2 Nf3 sidelines, including 2...Nf6 3 g3 and 2...Nf6 3 Bf4.} Be7 {[%emt 0:00:45]} 7. h3 {[%emt 0:02:09][%cal Bh2h3,Bh3h4,Bh4g5][%mdl 32]} Bh5 {[%emt 0:06:49]} 8. g4 {[%emt 0:12:44] White is slightly better.} Bg6 {[%emt 0:00:30]} 9. Ne5 {[%emt 0:00:12]} Nbd7 {[%emt 0:07:55] [#]} ({Black should try} 9... Nfd7 $14) 10. h4 $146 {[%emt 0:05:13]} ({Predecessor:} 10. Nxg6 hxg6 11. f3 Nb6 12. Be5 Kf8 13. f4 Nbd7 14. Nf3 Nxe5 15. Nxe5 Nd7 16. Nf3 {½-½ (37) Recacha Delgado,R (1080)-Bernat Mor,J (1333) Barcelona 2019}) 10... h6 {[%emt 0:11:53]} (10... Nxe5 11. dxe5 Nxg4) 11. Nxg6 {[%emt 0:04:25]} fxg6 {[%emt 0:00:08]} 12. Bd3 $36 {[%emt 0:02:40][%mdl 2048] White is on the roll.} Nf8 {[%emt 0:01:00]} 13. Qf3 {[%emt 0:08:31] White is more active.} Qd7 {[%emt 0:05:49]} 14. g5 {[%emt 0:07:34]} hxg5 {[%emt 0:01:50]} 15. hxg5 {[%emt 0:00:18]} Rxh1+ {[%emt 0:00:17]} 16. Qxh1 {[%emt 0:00:06]} Ne4 {[%emt 0:14:11]} 17. Nxe4 {[%emt 0:01:33]} dxe4 {[%emt 0:00:09]} 18. Bxe4 {[%emt 0:00:10]} ({Resist} 18. Qxe4 Qd5 19. Ke2 Rd8) 18... O-O-O {[%emt 0:00:46]} 19. O-O-O {[%emt 0:00:39][%cal Ba1d1,Bd1d3,Bd3b3][%mdl 32]} Bd6 {[%emt 0:07:45]} 20. Qh2 {[%emt 0:01:42]} Bxf4 {[%emt 0:08:48]} 21. Qxf4 {[%emt 0:00:18]} Qe7 {[%emt 0:04:10]} 22. Qe5 {[%emt 0:06:21]} Qf7 {[%emt 0:07:22]} 23. f4 {[%emt 0:04:39]} Re8 {[%emt 0:05:51]} 24. Rd3 {[%emt 0:03:08]} Qc7 {[%emt 0:02:17]} 25. Qc5 {[%emt 0:01:14]} Qb6 {[%emt 0:02:49]} 26. Qa3 {[%emt 0:01:22]} Kb8 {[%emt 0:01:00]} 27. Rb3 {[%emt 0:00:52]} Qc7 {[%emt 0:00:11]} 28. Qa4 {[%emt 0:03:42] [#] Threatens to win with Bxc6.} Rc8 {[%emt 0:00:49]} 29. Ra3 {[%emt 0:01:19][%csl Ga3][%cal Ra4a7]} a6 {[%emt 0:02:22]} 30. Qb4 {[%emt 0:04:48] Strongly threatening Rxa6.} Ka7 {[%emt 0:00:31]} 31. c4 {[%emt 0:02:12][%cal Bc2c4,Bc4c5][%mdl 32]} Rd8 {[%emt 0:01:00]} 32. c5 {[%emt 0:01:53]} Rc8 {[%emt 0:02:13]} 33. Qc4 {[%emt 0:01:06]} Qf7 {[%emt 0:01:34]} 34. b4 {[%emt 0:01:26]} Qc7 {[%emt 0:01:20]} 35. Rb3 {[%emt 0:01:07]} Kb8 {[%emt 0:00:44]} 36. a4 {[%emt 0:00:20] Hoping for b5.} Qd7 {[%emt 0:00:41]} 37. Kb2 {[%emt 0:02:03]} Kc7 {[%emt 0:01:36]} 38. b5 {[%emt 0:00:26]} axb5 {[%emt 0:00:07]} 39. axb5 {[%emt 0:00:01]} Kd8 {[%emt 0:00:16]} 40. bxc6 {[%emt 0:01:45]} bxc6 {[%emt 0:00:11]} 41. Qa6 {[%emt 0:30:50] White threatens Rb7 and mate.} Ke7 {[%emt 0:30:37]} 42. Rb7 {[%emt 0:01:49] White mates.} Rc7 {[%emt 0:00:30]} 43. Bxc6 {[%emt 0:03:49]} Rxb7+ {[%emt 0:00:00]} 44. Qxb7 {[%emt 0:00:00]} Qxb7+ {[%emt 0:00:00]} 45. Bxb7 {[%emt 0:00:00]} Kd7 {[%emt 0:00:00]} 46. Kc3 {[%emt 0:00:00]} Kc7 {[%emt 0:00:00]} 47. Be4 {[%emt 0:00:00]} Kd7 {[%emt 0:00:00]} 48. Kc4 {[%emt 0:00:00] Black did not feel at home in the position after the opening.  Weighted Error Value: White=0.04 (flawless) /Black=0.41} (48. Kb4 $142 Kc7 49. Kb5 Nh7 50. Bxg6 Nf8 51. Bd3 Kd8 52. c6 Kc8 53. Kb6) 1-0

[Event "AUT Bundesliga Women 2021-22"]
[Site "Austria"]
[Date "2022.04.23"]
[Round "9.15"]
[White "Kimpel, Janine"]
[Black "Hercog, Nusa"]
[Result "0-1"]
[ECO "B13"]
[WhiteElo "1843"]
[BlackElo "1989"]
[Annotator "TA"]
[PlyCount "96"]
[EventDate "2021.11.06"]
[EventType "team-tourn"]
[EventCountry "AUT"]
[SourceTitle "playchess.com"]
[Source "ChessBase"]
[SourceQuality "1"]
[TimeControl "40/5400+30:1800+30"]

{[%evp 14,96,7,-17,-19,-25,-15,-17,-25,-34,-10,-6,-6,-35,-4,-2,48,58,47,49,50,40,78,65,106,-76,-79,-77,-85,-87,0,-82,-50,-203,-101,-108,-106,-100,-92,-347,0,-127,-113,-343,-348,-524,-496,-557,-450,-401,-278,-873,-878,-870,-811,-851,-805,-1195,-1155,-1059,-427,-417,-393,-635,-585,-1215,-1172,-1241,-1139,-29983,-29984,-29984,-29983,-29983,-29984,-29987,-29986,-29989,-29988,-29987,-29988,-29992,-29992,-29992,-29993]} 1. e4 {[%emt 0:00:12]} c6 {[%emt 0:00:10]} 2. d4 {[%emt 0:00:19]} d5 {[%emt 0:00:09]} 3. exd5 {[%emt 0:00:17]} cxd5 {[%emt 0:00:06]} 4. Bd3 {[%emt 0:00:27]} Nc6 {[%emt 0:00:38]} 5. c3 {[%emt 0:00:18]} Qc7 {[%emt 0:00:31]} 6. Ne2 {[%emt 0:00:59]} Bg4 {[%emt 0:00:27]} 7. f3 {[%emt 0:01:18]} Bd7 {[%emt 0:00:15]} 8. Bf4 {[%emt 0:00:58]} e5 {[%emt 0:05:57] B13: Caro-Kann: Exchange Variation and Panov-Botvinnik Attack.} 9. dxe5 {[%emt 0:05:54]} Nxe5 {[%emt 0:00:31]} 10. Bc2 {[%emt 0:04:31]} Nf6 $1 {[%emt 0:08:15] The position is equal. The main line 10...Nf6 scores better than 10...Bd6.} 11. Nd2 {[%emt 0:11:46] [#]} h6 $146 {[%emt 0:05:05]} ({Predecessor:} 11... Bd6 12. O-O O-O 13. Kh1 h6 14. Nd4 Rfe8 15. Nf5 Bxf5 16. Bxf5 Rad8 17. Qa4 a6 {1-0 (40) Gitelson,A (2214)-Cuevas,A (2268) Chess.com INT 2021}) 12. Nb3 {[%emt 0:04:43]} (12. O-O {seems wilder.} Bd6 13. Nb3 O-O 14. Nbd4) 12... Bd6 {[%emt 0:02:36][%cal Oe5f3]} 13. Qd2 {[%emt 0:07:16]} a5 {[%emt 0:10:20]} (13... Nc4 $5 {[%cal Rc4d2]} 14. Bxd6 Qxd6 $11) 14. Nbd4 {[%emt 0:11:47]} Nh5 {[%emt 0:13:04]} (14... O-O $11) 15. Bxe5 $14 {[%emt 0:08:30]} Bxe5 {[%emt 0:04:10]} 16. O-O-O {[%emt 0:05:51]} O-O {[%emt 0:12:52]} 17. Qd3 {[%emt 0:01:58][%csl Gc2][%cal Rd3h7] Prevents b5.} Nf6 {[%emt 0:04:44] Against Qh7+} 18. g4 {[%emt 0:12:21]} Bxh2 {[%emt 0:07:34]} 19. Nf5 $2 {[%emt 0:02:41] Pair of Knights!} (19. Qd2 $16) 19... Rfe8 $17 {[%emt 0:05:11]} 20. Kb1 {[%emt 0:01:14]} Bxf5 {[%emt 0:01:22]} 21. gxf5 {[%emt 0:00:22]} Kh7 {[%emt 0:05:45]} ({Better is} 21... Bf4 $17 {Strongly threatening ...Re3.} 22. Nxf4 Qxf4) 22. Rdf1 {[%emt 0:01:03]} (22. Qd2 $11 {remains equal.}) 22... Bd6 {[%emt 0:01:11] &Nero is more active.} 23. Bb3 $2 {[%emt 0:02:16]} ({White should try} 23. Ba4 $15) 23... Qc5 {[%emt 0:03:37]} (23... a4 $19 {and Black stays clearly on top.} 24. Bc2 a3 25. bxa3 Rxa3) 24. Ba4 {[%emt 0:01:28]} Re3 {[%emt 0:00:59]} 25. Qd2 {[%emt 0:01:29]} b5 {[%emt 0:03:56]} 26. Bxb5 {[%emt 0:01:55][%mdl 8192] [#]} a4 $2 {[%emt 0:00:32]} (26... Qxb5 $1 $19 27. Qxe3 Re8) 27. Bd3 {[%emt 0:02:08]} (27. Nd4 $11 {keeps the balance.} Bf4 28. Rh4) 27... Rb8 $36 {[%emt 0:01:09][%mdl 2048] ...Qb6 is the strong threat. Black is really pushing. Black keeps a firm grip on the game.} 28. Bc2 $2 {[%emt 0:03:35]} (28. Rfg1 $17) 28... Qb5 $19 {[%emt 0:00:48][%csl Gb8][%cal Rb5b2] Chess con chili.} 29. Bd1 {[%emt 0:00:25] [#]} (29. Bxa4 $142 Qxe2 30. Qxe2 Rxe2 31. Bb3) 29... Ba3 $1 {[%emt 0:01:34][%mdl 512]} 30. b3 {[%emt 0:02:30] [#]} (30. b4 Rd3) 30... axb3 $1 {[%emt 0:00:19]} 31. axb3 {[%emt 0:00:13]} Bc5 {[%emt 0:00:55]} 32. Nd4 $2 {[%emt 0:00:52]} (32. Nc1) 32... Bxd4 {[%emt 0:00:38]} ({Don't go for} 32... Rd3 $2 33. Nxb5 Rxd2 34. Nd4 $19) 33. Qxd4 {[%emt 0:00:08]} Rd3 {[%emt 0:00:33]} 34. Qb4 {[%emt 0:04:23]} Qe8 {[%emt 0:00:48]} ({Avoid the trap} 34... Qxb4 $2 35. cxb4 Rxb4 36. Rfg1 $19) 35. Qa3 {[%emt 0:00:42]} Rxc3 {[%emt 0:00:19] Threatens to win with ...Qe3.} 36. Re1 {[%emt 0:00:26]} Re3 {[%emt 0:00:38]} (36... Qb5 $142 {( -> ...Qd3+)} 37. Ka2 Qd3) 37. Rxe3 {[%emt 0:00:52]} Qxe3 {[%emt 0:00:01]} 38. Qa4 {[%emt 0:00:40] Against Ne4} (38. Qc1 Qd3+ 39. Bc2 Qxf3 40. Qd1) 38... Qd3+ {[%emt 0:01:09]} 39. Kb2 {[%emt 0:00:15]} Rc8 {[%emt 0:00:31] Inhibits Qc6.} 40. Qb4 {[%emt 0:00:41] Against Qd2+} d4 {[%emt 0:00:39]} 41. Re1 {[%emt 0:04:55]} Nd5 {[%emt 0:02:35] Black mates.} 42. Qa5 {[%emt 0:04:52]} Ne3 {[%emt 0:01:16]} 43. f6 {[%emt 0:03:35]} g6 {[%emt 0:04:42]} 44. Qa7 {[%emt 0:01:47]} Kg8 {[%emt 0:02:41]} 45. Rxe3 {[%emt 0:06:17]} Qd2+ {[%emt 0:00:52]} 46. Ka3 {[%emt 0:00:41]} dxe3 {[%emt 0:00:11]} 47. Qa6 {[%emt 0:00:37]} Qc1+ {[%emt 0:00:29]} 48. Ka2 {[%emt 0:00:31]} Rd8 {[%emt 0:00:10] Weighted Error Value: White=0.94/Black=0.37} 0-1

[Event "AUT Bundesliga Women 2021-22"]
[Site "Austria"]
[Date "2022.04.23"]
[Round "9.16"]
[White "Zoehrer, Sarah"]
[Black "Zhbanova, Angelina"]
[Result "1-0"]
[ECO "D02"]
[WhiteElo "1650"]
[BlackElo "1586"]
[Annotator "NA RC COMBH"]
[PlyCount "139"]
[EventDate "2021.11.06"]
[EventType "team-tourn"]
[EventCountry "AUT"]
[SourceTitle "playchess.com"]
[Source "ChessBase"]
[SourceQuality "1"]
[TimeControl "40/5400+30:1800+30"]

1. d4 {[%emt 0:00:06]} Nf6 {[%emt 0:00:07]} 2. Nf3 {[%emt 0:00:55]} d5 {[%emt 0:01:02]} 3. Bf4 {[%emt 0:00:37]} e6 {[%emt 0:01:21]} 4. e3 {[%emt 0:01:26]} a6 {[%emt 0:02:48]} 5. Nbd2 {[%emt 0:02:23]} c5 {[%emt 0:04:05]} 6. c3 {[%emt 0:00:22]} Nbd7 {[%emt 0:05:35]} 7. Qa4 {[%emt 0:03:37]} c4 {[%emt 0:03:15]} 8. Be2 {[%emt 0:02:30]} b5 {[%emt 0:02:50]} 9. Qc2 {[%emt 0:01:01]} Bb7 {[%emt 0:04:11]} 10. Ne5 {[%emt 0:05:03]} Be7 {[%emt 0:05:19]} 11. Ndf3 {[%emt 0:04:13]} h6 {[%emt 0:02:28]} 12. Nxd7 {[%emt 0:06:06]} Nxd7 {[%emt 0:00:49]} 13. Ne5 {[%emt 0:02:31]} Nxe5 {[%emt 0:02:29]} 14. Bxe5 {[%emt 0:00:17]} O-O {[%emt 0:02:44]} 15. Bh5 {[%emt 0:02:49]} Bf6 {[%emt 0:07:38]} 16. Bf4 {[%emt 0:03:19]} Bg5 {[%emt 0:02:41]} 17. Bg3 {[%emt 0:00:54]} Qe7 {[%emt 0:11:17]} 18. O-O {[%emt 0:07:08]} g6 {[%emt 0:05:57]} 19. Be2 {[%emt 0:05:08]} f5 {[%emt 0:02:03]} 20. Be5 {[%emt 0:02:47]} Bf6 {[%emt 0:01:40]} 21. f4 {[%emt 0:00:56]} Bxe5 {[%emt 0:01:07]} 22. fxe5 {[%emt 0:00:56]} a5 {[%emt 0:02:36]} 23. Rf3 {[%emt 0:02:28]} b4 {[%emt 0:04:14]} 24. Rg3 {[%emt 0:04:44]} Kf7 {[%emt 0:00:16]} 25. Rf1 {[%emt 0:01:50]} Rg8 {[%emt 0:03:51]} 26. Rh3 {[%emt 0:05:15]} Kg7 {[%emt 0:02:40]} 27. g4 {[%emt 0:04:28]} Raf8 {[%emt 0:02:49]} 28. Rf4 {[%emt 0:04:59]} g5 {[%emt 0:03:54]} 29. Rf2 {[%emt 0:03:38]} b3 {[%emt 0:07:12]} 30. axb3 {[%emt 0:01:08]} cxb3 {[%emt 0:00:07]} 31. Qxb3 {[%emt 0:00:45]} fxg4 {[%emt 0:01:48]} 32. Bxg4 {[%emt 0:00:35]} Rxf2 {[%emt 0:00:40]} 33. Kxf2 {[%emt 0:00:08]} Rf8+ {[%emt 0:00:36]} 34. Rf3 {[%emt 0:04:01]} Ba6 {[%emt 0:01:57]} 35. Qd1 {[%emt 0:01:25]} Qb7 {[%emt 0:02:20]} 36. Qc1 {[%emt 0:03:31]} Rxf3+ {[%emt 0:01:08]} 37. Kxf3 {[%emt 0:00:03]} Qf7+ {[%emt 0:00:13]} 38. Kg3 {[%emt 0:01:35]} h5 {[%emt 0:00:50]} 39. Bf3 {[%emt 0:01:24]} h4+ {[%emt 0:00:46]} 40. Kg2 {[%emt 0:00:48]} h3+ {[%emt 0:00:33]} 41. Kg3 {[%emt 0:30:21]} Qf5 {[%emt 0:30:15]} 42. Bg4 {[%emt 0:01:47]} Qe4 {[%emt 0:00:36]} 43. Qg1 {[%emt 0:02:52]} Qg2+ {[%emt 0:00:41]} 44. Qxg2 {[%emt 0:00:15]} hxg2 {[%emt 0:00:02]} 45. Kxg2 {[%emt 0:00:11]} Bc8 {[%emt 0:00:11]} 46. Kf3 {[%emt 0:00:46]} Kf7 {[%emt 0:00:20]} 47. e4 {[%emt 0:00:17]} dxe4+ {[%emt 0:00:31]} 48. Kxe4 {[%emt 0:00:10]} Bb7+ {[%emt 0:00:08]} 49. Kd3 {[%emt 0:00:33]} Ba6+ {[%emt 0:01:08]} 50. c4 {[%emt 0:00:17]} Bb7 {[%emt 0:00:10]} 51. Kc3 {[%emt 0:01:00]} Bc6 {[%emt 0:00:19]} 52. b4 {[%emt 0:01:38]} axb4+ {[%emt 0:00:11]} 53. Kxb4 {[%emt 0:00:08]} Ke7 {[%emt 0:00:19]} 54. Kc5 {[%emt 0:00:45]} Be4 {[%emt 0:00:28]} 55. d5 {[%emt 0:00:43]} Bf5 {[%emt 0:00:23]} 56. d6+ {[%emt 0:00:50]} Kd7 {[%emt 0:00:18]} 57. Bf3 {[%emt 0:01:17]} Bg6 {[%emt 0:01:00]} 58. Bc6+ {[%emt 0:00:43]} Kc8 {[%emt 0:00:34]} 59. Kd4 {[%emt 0:00:55]} Kd8 {[%emt 0:00:33]} 60. c5 {[%emt 0:00:41]} Bh5 {[%emt 0:00:55]} 61. Ba4 {[%emt 0:00:42]} Bf3 {[%emt 0:00:21]} 62. c6 {[%emt 0:00:40]} Bd5 {[%emt 0:00:20]} 63. c7+ {[%emt 0:00:50]} Kc8 {[%emt 0:00:09]} 64. Bb5 {[%emt 0:00:50]} Ba8 {[%emt 0:00:50]} 65. Ba6+ {[%emt 0:00:30]} Bb7 {[%emt 0:00:09]} 66. Bxb7+ {[%emt 0:00:41]} Kxb7 {[%emt 0:00:05]} 67. Kc5 {[%emt 0:00:31]} g4 {[%emt 0:00:26]} 68. Kb5 {[%emt 0:00:05]} g3 {[%emt 0:00:31]} 69. hxg3 {[%emt 0:00:19]} Kc8 {[%emt 0:00:24]} 70. g4 {[%emt 0:00:18]} 1-0

[Event "AUT Bundesliga Women 2021-22"]
[Site "Austria"]
[Date "2022.04.23"]
[Round "9.17"]
[White "Berke, Ana"]
[Black "Novkovic, Julia"]
[Result "1-0"]
[ECO "C90"]
[WhiteElo "2140"]
[BlackElo "2068"]
[Annotator "TA"]
[PlyCount "143"]
[EventDate "2021.11.06"]
[EventType "team-tourn"]
[EventCountry "AUT"]
[SourceTitle "playchess.com"]
[Source "ChessBase"]
[SourceQuality "1"]
[TimeControl "40/5400+30:1800+30"]

{[%evp 26,143,0,-8,52,16,74,50,45,0,61,65,60,21,20,5,16,14,26,14,14,14,14,0,5,0,7,0,54,0,0,-8,0,0,0,24,27,14,190,190,216,179,180,138,443,34,347,257,235,235,262,269,336,346,693,683,772,687,808,752,3082,932,1282,1150,1708,1655,29965,29967,29964,29965,5960,5293,5050,744,735,658,802,763,731,722,2044,1555,4966,4669,1816,1593,1084,630,900,188,188,188,736,372,214,188,188,188,736,188,783,731,1480,1262,7132,5544,29976,29978,29978,29979,29979,29980,29978,29979,29985,29984,29984,29985,29989,29989]} 1. e4 {[%emt 0:00:04]} e5 {[%emt 0:00:12]} 2. Nf3 {[%emt 0:00:06]} Nc6 {[%emt 0:00:02]} 3. Bb5 {[%emt 0:00:08][%cal Bf1b5,Bb5a4,Ba4b3][%mdl 32]} a6 {[%emt 0:00:05]} 4. Ba4 {[%emt 0:00:03]} Nf6 {[%emt 0:00:05]} 5. O-O {[%emt 0:00:07]} Be7 {[%emt 0:00:25]} 6. Re1 {[%emt 0:00:14]} b5 {[%emt 0:00:05]} 7. Bb3 {[%emt 0:00:04]} O-O {[%emt 0:00:06]} 8. d3 {[%emt 0:00:12]} d6 {[%emt 0:00:18]} 9. c3 {[%emt 0:00:05]} Na5 {[%emt 0:00:08]} 10. Bc2 {[%emt 0:00:06]} c5 {[%emt 0:00:04]} 11. Nbd2 {[%emt 0:00:07]} Re8 {[%emt 0:00:40]} 12. Nf1 {[%emt 0:00:09]} Nc6 {[%emt 0:00:31]} 13. h3 {[%emt 0:00:21]} h6 {[%emt 0:00:39]} 14. d4 {[%emt 0:01:32]} Bf8 {[%emt 0:02:30] C90: Closed Ruy Lopez with 7...d6: Early deviations.} ({Better is} 14... exd4 $11 15. cxd4 d5) 15. Ng3 {[%emt 0:01:23]} g6 {[%emt 0:04:31]} (15... exd4 $11 {keeps the balance.} 16. cxd4 cxd4) 16. a4 {[%emt 0:04:01]} (16. d5 $5 {[%cal Rd5c6]} Ne7 17. Be3 $14) 16... Bd7 {[%emt 0:03:54] White is slightly better.} 17. Be3 {[%emt 0:03:40]} (17. d5 $5 {[%cal Rd5c6]} Na5 18. axb5 $14) 17... Qc7 {[%emt 0:10:43] [#]} (17... exd4 $11 18. cxd4 cxd4 19. Bxd4 (19. Nxd4 Nb4 $11) 19... Nxd4 20. Qxd4 Rb8) 18. d5 $146 {[%emt 0:04:24]} ({Predecessor:} 18. Qd2 Kh7 19. Bb3 c4 20. Bc2 Na5 21. axb5 axb5 22. Nh2 Nb3 23. Bxb3 cxb3 24. Rxa8 Rxa8 {1-0 (49) Gledura,B (2312)-Lengyel,B (2260) Budapest 2012}) 18... Na5 {[%emt 0:02:41]} 19. Nh4 {[%emt 0:01:44]} Reb8 {[%emt 0:14:21]} 20. axb5 {[%emt 0:05:55]} axb5 {[%emt 0:05:27]} 21. b3 {[%emt 0:00:48] Prevents Nc4.} b4 {[%emt 0:03:30]} 22. c4 {[%emt 0:01:37]} Qd8 {[%emt 0:05:27][%cal Of6d5]} 23. Nf3 {[%emt 0:03:57]} Nb7 {[%emt 0:02:04]} 24. Rc1 {[%emt 0:02:33]} Ra2 {[%emt 0:03:23]} 25. Rf1 {[%emt 0:00:55]} Bg7 {[%emt 0:08:51]} 26. Ne1 {[%emt 0:03:29]} Qc8 {[%emt 0:06:58]} (26... Qf8 $11) 27. Kh2 {[%emt 0:05:12]} ({White should try} 27. f4 $1 $14) 27... h5 {[%emt 0:00:10][%cal Bh6h5,Bh5h4][%mdl 32]} 28. f4 {[%emt 0:03:19]} Bg4 {[%emt 0:03:48]} 29. Qd3 {[%emt 0:03:13] Hoping for fxe5.} h4 {[%emt 0:00:23]} 30. Nh1 {[%emt 0:01:26]} Bh5 {[%emt 0:16:40]} 31. fxe5 {[%emt 0:04:04]} dxe5 {[%emt 0:00:47]} (31... Nd7 $1 $11 {and Black stays safe.} 32. e6 Ne5 33. exf7+ Nxf7) 32. Bg5 $18 {[%emt 0:01:29][%csl LRf6,LRh4][%cal Be3g5,Bg5h4,Bh4f2][%mdl 32]} Qd8 {[%emt 0:04:17][%cal Of6g4] And now ...Ng4+! would win.} 33. Nf3 {[%emt 0:02:53]} Nd6 {[%emt 0:00:59]} 34. Bxh4 {[%emt 0:04:56]} Bh6 $2 {[%emt 0:01:33][%mdl 8192]} (34... Ndxe4 $16 {is a better chance.} 35. Qxe4 Nxe4 36. Bxd8 Bxf3) 35. Rce1 $2 {[%emt 0:02:25]} ({White must play} 35. Nxe5 $18 Nde8 36. Ra1 Rxa1 37. Rxa1) 35... Bf4+ $2 {[%emt 0:00:55][%mdl 8192]} (35... Bxf3 $14 36. Bxf6 Qxf6 37. Rxf3 Qg5) 36. Kg1 {[%emt 0:04:26]} Bxf3 {[%emt 0:00:43]} 37. Rxf3 {[%emt 0:00:42]} g5 {[%emt 0:00:07]} 38. Bf2 {[%emt 0:01:47]} Nfxe4 {[%emt 0:00:20]} 39. Rxe4 {[%emt 0:01:11]} f5 $2 {[%emt 0:00:09] [#]} (39... Ra1+ 40. Bb1 (40. Re1 $2 Rxe1+ 41. Bxe1 e4 $19) 40... f5 41. Rfxf4 gxf4 42. Rxe5 Qf6) 40. Rfxf4 $1 {[%emt 0:03:22]} fxe4 {[%emt 0:01:15]} (40... gxf4 41. Rxe5) 41. Rxe4 {[%emt 0:30:31]} Nxe4 {[%emt 0:09:30]} 42. Qxe4 {Qh7+ would kill now.} Qd6 {[%emt 0:00:36]} 43. Ng3 {[%emt 0:00:00]} (43. Qh7+ $142 Kf8 44. Bg6 Rxf2 45. Nxf2) 43... Rb7 {[%emt 0:09:33]} 44. Nf5 {[%emt 0:00:00]} Qf8 {[%emt 0:00:05]} 45. d6 {[%emt 0:00:00]} Rf7 {[%emt 0:03:03]} 46. Ne7+ {[%emt 0:00:00]} Rxe7 {[%emt 0:00:43]} 47. dxe7 {[%emt 0:00:00]} Qxe7 {[%emt 0:00:06]} 48. Qg6+ {[%emt 0:00:00]} Qg7 {[%emt 0:06:21]} 49. Bxc5 {[%emt 0:00:00]} (49. Qe8+ $142 Qf8 50. Bh7+ $1 {[%mdl 512]} Kg7 51. Qg6+ Kh8 52. Bg3) 49... Qxg6 {[%emt 0:01:50]} 50. Bxg6 {[%emt 0:00:00] This bishop pair is nice.} Ra1+ {[%emt 0:01:11]} 51. Kh2 {[%emt 0:00:00]} Kg7 {[%emt 0:01:20]} 52. Be8 {[%emt 0:00:00]} Rb1 {[%emt 0:01:51]} 53. Ba4 {[%emt 0:00:00]} e4 {[%emt 0:00:13]} 54. Bxb4 {[%emt 0:00:00]} e3 {[%emt 0:00:14]} 55. Kg3 {[%emt 0:00:00]} Rf1 {[%emt 0:00:34]} 56. Bc3+ {[%emt 0:00:00]} Kh6 {[%emt 0:00:14]} 57. Bd4 $2 {[%emt 0:04:59]} (57. c5 {Threatens to win with Bb5.} e2 58. c6) 57... e2 {[%emt 0:00:42]} 58. Bf2 {[%emt 0:01:03]} Kh5 $2 {[%emt 0:00:59]} (58... Kg6 59. Bc6 (59. Be8+ Kf5 $16) 59... e1=Q 60. Bxe1 Rxe1) 59. Bc6 {[%emt 0:02:57]} ({Not} 59. Be8+ Kh6 60. b4 e1=Q 61. Bxe1 Rxe1 $18) 59... e1=Q {[%emt 0:00:15]} (59... e1=B $142) 60. Bxe1 {[%emt 0:00:19]} Rxe1 {[%emt 0:00:01][%mdl 4096] Endgame KR-KB} 61. b4 {[%cal Bb3b4,Bb4b5][%mdl 32] c5 is the strong threat.} Re3+ $2 {[%emt 0:00:36]} (61... Rc1) 62. Kf2 {[%emt 0:01:18]} Rb3 $2 {[%emt 0:00:49] [#]} (62... Rc3) 63. b5 $1 {[%emt 0:00:15]} Kh4 {[%emt 0:00:12]} 64. Bf3 {[%emt 0:00:58] Black must now prevent Be2.} Rb4 {[%emt 0:01:00]} 65. Be2 {[%emt 0:00:23] Intending c5 and mate.} Rb2 {[%emt 0:00:43]} 66. c5 {[%emt 0:00:16][%cal Bc4c5,Bc5c6][%mdl 32] White mates.} g4 {[%emt 0:00:21]} 67. hxg4 {[%emt 0:00:28]} Rc2 {[%emt 0:00:41]} 68. c6 {[%emt 0:00:09]} Kg5 {[%emt 0:00:08]} 69. Ke3 {[%emt 0:00:08]} Kh4 {[%emt 0:00:10]} 70. Bd3 {[%emt 0:00:17]} Rc5 {[%emt 0:01:06]} 71. Kd4 {[%emt 0:00:13]} Rg5 {[%emt 0:00:11]} 72. Bf5 {[%emt 0:00:07] Weighted Error Value: White=0.49/Black=0.86} 1-0